bitfinex/quotes_SOLUSD_20251030
["timestamp","ask_amount","ask_price","bid_price","bid_amount"]
[1761818248711,71.32901096,193.16,193.12,2.06219664]
[1761818249095,0.65,193.15,193.12,2.06219664]
[1761818249714,0.65,193.15,193.12,5.17812758]
[1761818252105,0.65,193.15,193.11,5.17834444]
[1761818252318,2.71219664,193.15,193.07,12.94807685]
[1761818252489,2.06219664,193.1,193.02,10.43882769]
[1761818252695,2.06219664,193.08,193.02,10.43882769]
[1761818252915,2.06219664,193.08,193.02,12.50102433]
[1761818253420,3.87526547,193.08,193.02,10.43882769]
[1761818253715,0.65,193.07,193.02,10.43882769]
[1761818254107,0.65,193.07,193.03,18.13189659]
[1761818257007,0.65,193.07,193.03,18.78189659]
[1761818258023,70.67901096,193.09,193.04,3.87526547]
[1761818258213,3.22526547,193.06,192.99,0.65]
[1761818258522,3.22526547,193.06,192.99,3.87526547]
[1761818258731,0.65,193.05,193.0,18.13471502]
[1761818259224,3.87526547,193.08,193.02,3.22526547]
[1761818259429,0.65,193.08,193.03,3.22526547]
[1761818259603,3.87526547,193.08,193.02,3.22526547]
[1761818259805,0.65,193.07,193.02,3.22526547]
[1761818260011,3.87526547,193.07,193.01,13.66409316]
[1761818260420,3.87526547,193.07,193.02,18.13283596]
[1761818261025,3.87526547,193.07,193.02,18.78283596]
[1761818261835,3.22526547,193.07,193.02,18.78283596]
[1761818262128,3.87526547,193.07,193.02,18.78283596]
[1761818263735,0.65,193.06,193.02,18.13283596]
[1761818264204,3.22526547,193.07,193.02,18.78283596]
[1761818264404,3.87526547,193.07,193.02,18.78283596]
[1761818264936,0.65,193.06,193.02,18.78283596]
[1761818265410,71.32901096,193.06,193.02,18.78283596]
[1761818267746,3.22526547,193.05,193.02,5.18081027]
[1761818267905,74.55427643,193.06,193.02,5.83081027]
[1761818268317,70.67901096,193.06,193.03,0.65]
[1761818268930,70.67901096,193.06,193.02,18.13283596]
[1761818269124,70.67901096,193.06,193.02,18.78283596]
[1761818270203,71.32901096,193.06,193.02,18.78283596]
[1761818270406,71.32901096,193.06,193.02,22.00810143]
[1761818271024,71.32901096,193.06,193.02,18.78283596]
[1761818271226,71.32901096,193.06,193.02,22.00810143]
[1761818274237,70.67901096,193.05,193.02,22.00810143]
[1761818276645,70.67901096,193.05,193.04,5.18027351]
[1761818277137,3.87526547,193.1,193.05,9.78882769]
[1761818277349,0.65,193.1,193.06,3.22526547]
[1761818277534,91.27101096,193.12,193.06,3.91526547]
[1761818277735,70.67901096,193.11,193.09,3.22526547]
[1761818278130,70.67901096,193.11,193.09,3.91526547]
[1761818278445,70.67901096,193.11,193.09,3.22526547]
[1761818278748,70.67901096,193.11,193.1,5.1786639]
[1761818279044,0.69,193.1,193.08,12.94760327]
[1761818279642,0.69,193.1,193.09,5.17868896]
[1761818279840,0.69,193.1,193.07,5.17938121]
[1761818280221,0.69,193.1,193.07,8.40464668]
[1761818280635,3.91526547,193.1,193.05,5.17973885]
[1761818280840,3.91526547,193.1,193.05,8.40500432]
[1761818281150,0.69,193.09,193.05,8.40500432]
[1761818281849,0.69,193.09,193.05,9.09500432]
[1761818282231,3.22526547,193.07,193.02,5.18081027]
[1761818282552,3.22526547,193.07,193.02,8.40607574]
[1761818282733,0.69,193.06,193.02,8.40607574]
[1761818283762,0.69,193.06,193.02,5.18081027]
[1761818287056,0.69,193.06,193.01,21.35904092]
[1761818287256,0.69,193.06,193.01,22.04904092]
[1761818288442,0.69,193.06,193.03,5.18054188]
[1761818288837,70.67901096,193.05,193.03,5.18054188]
[1761818289347,71.36901096,193.05,193.03,5.18054188]
[1761818289860,0.69,193.04,193.01,5.18084927]
[1761818291952,0.69,193.04,193.0,8.40654718]
[1761818292256,0.69,193.04,193.0,20.592]
[1761818293441,0.69,193.04,192.99,28.99885111]
[1761818293957,3.91526547,193.04,192.99,28.99885111]
[1761818294160,0.69,193.04,192.99,22.02089017]
[1761818294751,70.67901096,193.03,192.99,22.02089017]
[1761818294931,70.67901096,193.03,192.99,18.7956247]
[1761818295137,70.67901096,193.03,193.01,5.1810787]
[1761818296550,70.67901096,193.03,192.99,5.84138086]
[1761818296761,71.36901096,193.03,193.0,3.22526547]
[1761818297253,71.36901096,193.03,193.01,5.1810787]
[1761818299441,0.69,193.02,193.0,5.18134715]
[1761818302257,0.69,193.02,192.98,5.18188413]
[1761818302440,0.69,193.02,192.98,8.4071496]
[1761818303864,0.69,193.02,192.98,5.18188413]
[1761818303865,3.91526547,193.02,192.98,5.18188413]
[1761818304367,0.69,193.01,192.98,5.18188413]
[1761818305545,71.36901096,193.03,192.98,18.79659446]
[1761818305752,0.69,193.02,192.99,3.22526547]
[1761818306450,70.67901096,193.03,193.0,3.22526547]
[1761818306655,71.36901096,193.03,193.0,3.22526547]
[1761818307354,0.7,193.02,192.98,18.79659446]
[1761818307558,0.7,193.02,193.01,5.1810787]
[1761818309067,0.7,193.02,192.99,5.18154993]
[1761818309269,70.67901096,193.01,192.99,5.18154993]
[1761818309566,70.67901096,193.01,192.98,5.1818784]
[1761818309771,0.7,193.0,192.98,5.1818784]
[1761818310756,0.7,193.0,192.96,21.36363917]
[1761818311242,0.7,193.0,192.96,22.03363917]
[1761818311873,0.7,193.0,192.96,5.18242122]
[1761818312453,3.22526547,192.98,192.95,5.38262539]
[1761818312762,3.92526547,193.0,192.95,5.38266628]
[1761818313245,0.7,192.99,192.95,5.38266628]
[1761818313655,3.92526547,192.99,192.95,5.38266628]
[1761818314173,0.7,192.98,192.95,5.38266628]
[1761818315172,0.7,192.98,192.95,0.2]
[1761818315353,0.7,192.98,192.95,5.38254134]
[1761818316372,2.76622094,192.98,192.95,5.38254134]
[1761818316748,11.59175663,192.99,192.95,5.38254134]
[1761818316971,0.7,192.98,192.95,5.38254134]
[1761818319162,2.76622094,192.98,192.95,5.38254134]
[1761818319369,2.06622094,192.97,192.95,0.2]
[1761818319567,2.06622094,192.96,192.95,0.2]
[1761818319879,23.35822094,192.96,192.95,0.2]
[1761818321255,28.54064216,192.96,192.95,0.2]
[1761818322075,9.52553569,192.99,192.95,5.38268981]
[1761818322262,9.52553569,192.99,192.95,7.44891075]
[1761818322463,9.52553569,192.99,192.95,8.11891075]
[1761818322664,9.52553569,192.99,192.95,6.05268981]
[1761818322976,9.52553569,192.99,192.95,21.07563529]
[1761818325587,0.7,192.98,192.95,20.40563529]
[1761818325771,10.22553569,192.99,192.95,20.40563529]
[1761818326283,9.52553569,192.99,192.96,2.73622094]
[1761818326675,9.52553569,192.99,192.96,2.06622094]
[1761818327596,9.52553569,192.99,192.98,7.24810507]
[1761818328081,9.52553569,192.99,192.98,7.91810507]
[1761818328470,9.52553569,192.99,192.98,17.70693276]
[1761818329184,0.7,193.09,192.99,9.78882769]
[1761818329491,0.7,193.1,193.06,7.24575144]
[1761818329679,21.292,193.1,193.06,5.1795305]
[1761818330365,0.7,193.1,193.06,7.24575144]
[1761818330783,0.7,193.1,193.03,2.06622094]
[1761818330987,22.65822094,193.09,193.03,2.06622094]
[1761818331163,2.06622094,193.08,193.02,2.06622094]
[1761818331365,2.76622094,193.08,193.02,2.06622094]
[1761818331671,2.06622094,193.04,192.96,14.97124891]
[1761818331857,2.06622094,193.04,192.99,9.78882769]
[1761818332289,2.06622094,193.04,193.0,0.67]
[1761818333070,2.06622094,193.03,193.0,0.67]
[1761818338496,0.72,193.02,192.97,5.18197191]
[1761818338696,0.72,193.02,192.98,9.78882769]
[1761818338886,0.72,193.02,192.98,0.7]
[1761818339886,0.72,193.02,192.98,5.88188066]
[1761818340189,2.06622094,193.03,192.98,5.88188066]
[1761818340390,103.4,193.04,192.99,0.71]
[1761818340701,0.7,193.03,192.98,9.78882769]
[1761818340895,0.7,193.03,192.98,10.49882769]
[1761818341075,0.7,193.03,192.97,9.78882769]
[1761818341076,105.46622094,193.02,192.97,9.78882769]
[1761818341580,2.06622094,193.0,192.95,6.09263931]
[1761818341784,104.1,193.01,192.95,15.171467]
[1761818341977,0.7,193.0,192.95,15.171467]
[1761818342382,0.7,193.0,192.95,0.2]
[1761818343601,5.18161562,192.99,192.95,0.2]
[1761818344006,0.71,192.98,192.95,0.2]
[1761818345691,5.89215159,192.98,192.95,0.2]
[1761818346104,0.71,192.97,192.95,0.2]
[1761818347587,0.7,192.96,192.95,0.2]
[1761818348927,104.1,192.96,192.95,0.2]
[1761818349225,7.94864216,192.96,192.95,0.2]
[1761818358133,21.16925605,192.96,192.95,1e-08]
[1761818358426,21.54816553,192.96,192.95,1e-08]
[1761818358619,65.19112404,192.96,192.95,1e-08]
[1761818358820,74.97995173,192.96,192.95,1e-08]
[1761818359336,20.592,192.92,192.91,0.2]
[1761818359637,26.09000714,192.92,192.91,0.2]
[1761818359803,26.76000714,192.92,192.91,0.2]
[1761818360636,52.42930652,192.92,192.91,0.2]
[1761818361427,57.61280226,192.92,192.91,0.2]
[1761818362216,107.61280226,192.92,192.91,0.2]
[1761818362532,9.78882769,192.91,192.9,0.2]
[1761818362723,14.59126957,192.91,192.9,0.2]
[1761818363314,20.592,192.88,192.85,0.2]
[1761818363512,2.06622094,192.86,192.85,0.2]
[1761818363907,2.73622094,192.86,192.85,0.2]
[1761818365708,7.9213293,192.86,192.85,0.2]
[1761818367137,2.73622094,192.86,192.85,0.2]
[1761818367935,7.9213293,192.86,192.85,0.2]
[1761818371639,5.85510836,192.86,192.85,0.2]
[1761818372121,7.9213293,192.86,192.85,0.2]
[1761818375339,9.08897047,192.86,192.85,0.2]
[1761818375845,18.87779816,192.86,192.85,0.2]
[1761818378342,5.85510836,192.86,192.85,0.2]
[1761818378549,9.08897047,192.86,192.85,0.2]
[1761818380828,13.0226898,192.85,192.83,0.2]
[1761818381025,13.7226898,192.85,192.83,0.2]
[1761818381529,18.90806703,192.85,192.83,0.2]
[1761818384334,22.32281357,192.85,192.83,0.2]
[1761818386833,9.11923934,192.85,192.83,0.2]
[1761818390431,9.29980734,192.87,192.83,0.2]
[1761818390636,23.82586211,192.85,192.83,0.2]
[1761818390933,33.6146898,192.85,192.83,0.2]
[1761818391259,59.78882769,192.83,192.82,0.2]
[1761818391449,66.44249165,192.83,192.82,0.2]
[1761818391643,30.38082769,192.81,192.8,0.2]
[1761818391838,40.26835376,192.81,192.8,0.2]
[1761818392048,40.96835376,192.81,192.8,0.2]
[1761818392244,20.37635376,192.81,192.8,0.2]
[1761818392445,22.14300489,192.81,192.8,0.2]
[1761818393344,42.73500489,192.81,192.8,0.2]
[1761818393651,46.15480674,192.81,192.8,0.2]
[1761818394260,25.56280674,192.81,192.8,0.2]
[1761818394639,22.14300489,192.81,192.8,0.2]
[1761818394841,42.73500489,192.81,192.8,0.2]
[1761818395039,25.56280674,192.81,192.8,0.2]
[1761818395753,22.14300489,192.81,192.8,0.2]
[1761818397148,15.67528067,192.81,192.8,0.2]
[1761818397456,3.23386211,192.81,192.8,0.2]
[1761818397631,3.93386211,192.81,192.8,0.2]
[1761818398055,13.7226898,192.81,192.8,0.2]
[1761818398459,16.95655191,192.81,192.8,0.2]
[1761818399049,20.38013619,192.81,192.8,0.2]
[1761818399446,25.56658917,192.81,192.8,0.2]
[1761818400161,25.56658917,192.81,192.79,0.2]
[1761818400162,80.38082769,192.8,192.79,0.2]
[1761818400460,90.97213619,192.8,192.79,0.2]
[1761818401367,89.69113396,192.8,192.79,0.2]
[1761818401591,96.15885818,192.8,192.79,0.2]
[1761818401856,109.12566315,192.8,192.72,0.72]
[1761818402058,3.23386211,192.73,192.72,0.72]
[1761818402262,3.23386211,192.73,192.71,0.2]
[1761818402564,3.93386211,192.72,192.71,0.2]
[1761818403159,3.23386211,192.72,192.71,0.2]
[1761818403351,3.23386211,192.72,192.71,0.92]
[1761818403865,3.23386211,192.72,192.71,0.2]
[1761818404164,8.42273716,192.72,192.71,0.2]
[1761818404760,13.19819712,192.72,192.71,0.2]
[1761818404951,16.62183116,192.72,192.71,0.2]
[1761818405147,13.19819712,192.72,192.71,0.2]
[1761818405545,16.43205923,192.72,192.71,0.2]
[1761818405751,20.592,192.69,192.65,0.72]
[1761818406066,23.82586211,192.66,192.64,0.2]
[1761818406243,37.03832384,192.65,192.64,0.2]
[1761818406568,20.592,192.61,192.55,0.72]
[1761818406761,3.23386211,192.57,192.55,5.91338416]
[1761818407153,3.23386211,192.57,192.56,0.72]
[1761818407667,3.23386211,192.57,192.56,5.91318653]
[1761818408173,3.23386211,192.57,192.52,0.72]
[1761818408339,3.23386211,192.53,192.52,0.72]
[1761818409444,3.23386211,192.53,192.52,5.91426553]
[1761818409634,3.23386211,192.53,192.45,18.51367979]
[1761818409838,3.23386211,192.52,192.5,0.72]
[1761818411771,3.23386211,192.52,192.51,5.19453534]
[1761818412341,3.23386211,192.52,192.51,0.72]
[1761818412954,20.592,192.56,192.51,0.72]
[1761818413159,3.23386211,192.53,192.51,0.72]
[1761818413358,0.7,192.58,192.51,0.72]
[1761818413553,3.23386211,192.53,192.51,5.91433292]
[1761818413965,3.23386211,192.52,192.48,5.91534497]
[1761818414147,3.23386211,192.5,192.48,5.91534497]
[1761818414550,3.23386211,192.5,192.49,0.72]
[1761818414956,3.23386211,192.51,192.49,0.72]
[1761818415273,3.23386211,192.52,192.49,0.72]
[1761818415570,3.23386211,192.52,192.5,5.19480519]
[1761818415766,0.67,192.57,192.5,18.18181817]
[1761818415965,3.23386211,192.53,192.51,0.72]
[1761818416152,65.95986915,192.64,192.52,3.23386211]
[1761818416153,3.23386211,192.58,192.52,3.23386211]
[1761818416545,3.23386211,192.58,192.53,0.72]
[1761818417466,3.23386211,192.57,192.54,5.19372597]
[1761818417848,3.23386211,192.57,192.55,0.72]
[1761818418172,3.23386211,192.56,192.52,0.72]
[1761818418369,0.67,192.58,192.52,0.72]
[1761818418577,3.23386211,192.54,192.52,0.72]
[1761818418952,3.23386211,192.53,192.52,0.72]
[1761818419163,3.23386211,192.54,192.52,0.72]
[1761818420454,3.23386211,192.54,192.51,5.19438919]
[1761818420652,20.592,192.55,192.51,5.91438919]
[1761818420653,3.23386211,192.53,192.51,5.91438919]
[1761818420853,3.23386211,192.53,192.51,5.19438919]
[1761818421069,3.23386211,192.54,192.52,0.72]
[1761818422586,3.23386211,192.54,192.52,5.91414172]
[1761818422757,0.67,192.64,192.53,13.0226898]
[1761818422961,3.23386211,192.6,192.54,3.23386211]
[1761818423280,3.23386211,192.6,192.54,3.95386211]
[1761818423479,3.23386211,192.6,192.55,0.72]
[1761818423866,3.23386211,192.57,192.55,0.72]
[1761818424070,3.23386211,192.56,192.55,0.72]
[1761818424565,3.23386211,192.56,192.55,5.91345624]
[1761818424885,3.23386211,192.57,192.55,5.91345624]
[1761818425267,3.23386211,192.57,192.56,0.72]
[1761818426454,3.23386211,192.57,192.54,0.72]
[1761818426860,33.57096742,192.62,192.54,0.72]
[1761818426861,3.23386211,192.56,192.54,0.72]
[1761818427067,3.23386211,192.55,192.54,0.72]
[1761818427407,23.82586211,192.56,192.54,0.72]
[1761818427762,3.23386211,192.56,192.54,0.72]
[1761818428284,3.23386211,192.59,192.55,5.19345624]
[1761818428892,3.23386211,192.59,192.56,0.7]
[1761818429090,20.592,192.62,192.54,0.7]
[1761818429091,3.23386211,192.57,192.54,0.7]
[1761818429300,3.23386211,192.55,192.51,0.7]
[1761818429604,20.592,192.57,192.51,0.7]
[1761818429806,3.23386211,192.56,192.51,0.7]
[1761818430485,5.19280548,192.58,192.52,4.19426553]
[1761818430673,3.23386211,192.54,192.51,5.89447705]
[1761818430864,3.23386211,192.55,192.51,5.89447705]
[1761818431368,3.23386211,192.55,192.52,0.7]
[1761818431782,3.23386211,192.56,192.52,0.7]
[1761818431983,23.82586211,192.56,192.52,0.7]
[1761818432693,3.23386211,192.59,192.53,5.19399574]
[1761818433072,3.23386211,192.59,192.54,0.72]
[1761818433267,20.592,192.6,192.54,0.72]
[1761818433590,3.23386211,192.61,192.54,3.95386211]
[1761818434095,3.23386211,192.6,192.55,0.72]
[1761818434260,20.592,192.61,192.55,0.72]
[1761818434261,3.23386211,192.58,192.55,0.72]
[1761818434467,3.23386211,192.57,192.53,18.89898509]
[1761818434875,3.23386211,192.57,192.54,0.72]
[1761818435075,3.23386211,192.58,192.54,0.72]
[1761818435265,2.07480575,192.58,192.54,0.72]
[1761818436290,2.07480575,192.57,192.54,0.72]
[1761818436496,2.07480575,192.57,192.53,5.19399574]
[1761818436681,2.07480575,192.57,192.53,5.91399574]
[1761818436995,2.07480575,192.57,192.53,5.19399574]
[1761818437203,2.07480575,192.57,192.54,0.72]
[1761818437998,2.07480575,192.57,192.53,18.17898509]
[1761818438201,2.07480575,192.56,192.53,5.91399574]
[1761818439376,0.67,192.55,192.44,5.39399574]
[1761818439609,0.67,192.55,192.32,0.2]
[1761818439610,20.592,192.42,192.32,0.2]
[1761818439784,2.07480575,192.33,192.32,0.2]
[1761818440192,22.66680575,192.35,192.32,0.2]
[1761818440395,2.07480575,192.33,192.32,0.2]
[1761818440880,2.07480575,192.33,192.32,0.92]
[1761818441083,2.07480575,192.33,192.32,0.2]
[1761818441403,2.07480575,192.34,192.32,5.39959111]
[1761818441581,20.592,192.39,192.32,6.11959111]
[1761818441784,2.07480575,192.36,192.32,19.11875916]
[1761818442199,2.07480575,192.35,192.33,0.72]
[1761818442629,2.07480575,192.36,192.33,0.72]
[1761818442996,2.07480575,192.38,192.33,0.72]
[1761818443486,2.07480575,192.38,192.34,18.1969429]
[1761818443900,2.07480575,192.38,192.34,18.9169429]
[1761818444473,4.26402953,192.5,192.37,2.07480575]
[1761818444676,4.26402953,192.5,192.36,9.78882769]
[1761818444677,2.07480575,192.42,192.36,9.78882769]
[1761818444977,2.07480575,192.42,192.37,0.72]
[1761818445178,2.07480575,192.44,192.38,2.07480575]
[1761818445393,5.19489974,192.44,192.39,18.19221373]
[1761818445609,5.19489974,192.44,192.39,18.91221373]
[1761818445779,5.19489974,192.44,192.4,0.72]
[1761818446307,5.19489974,192.43,192.4,0.72]
[1761818446512,5.19489974,192.44,192.39,18.19221373]
[1761818446893,5.19489974,192.44,192.39,18.91221373]
[1761818447290,5.19489974,192.43,192.39,18.19221373]
[1761818447592,0.67,192.44,192.39,18.91221373]
[1761818447787,20.592,192.47,192.39,18.91221373]
[1761818447788,5.19489974,192.43,192.39,18.91221373]
[1761818448191,5.19489974,192.4,192.37,5.1980742]
[1761818448601,5.19489974,192.42,192.38,0.72]
[1761818448796,5.19489974,192.43,192.38,0.72]
[1761818449788,54.26402953,192.5,192.38,0.72]
[1761818449789,0.67,192.48,192.41,5.19489974]
[1761818449989,5.19489974,192.48,192.43,5.1966949]
[1761818450225,5.19489974,192.48,192.43,5.9166949]
[1761818450432,0.67,192.48,192.43,18.90843215]
[1761818450586,5.86489974,192.48,192.43,18.90843215]
[1761818450792,5.86489974,192.48,192.42,5.19489974]
[1761818450793,5.19489974,192.44,192.41,5.19714299]
[1761818451513,5.19489974,192.43,192.4,5.19749114]
[1761818452089,25.78689974,192.44,192.4,5.91749114]
[1761818452990,20.592,192.44,192.41,5.91489974]
[1761818453191,5.19489974,192.48,192.42,5.19489974]
[1761818453403,5.19489974,192.48,192.42,5.91489974]
[1761818453593,0.67,192.47,192.4,18.91125413]
[1761818453812,0.67,192.47,192.4,23.38615387]
[1761818453813,5.19489974,192.46,192.4,23.38615387]
[1761818454009,5.86489974,192.47,192.42,5.19696497]
[1761818454537,5.19489974,192.44,192.4,5.19723931]
[1761818455018,5.86489974,192.44,192.4,5.19723931]
[1761818455216,21.262,192.47,192.4,10.39213905]
[1761818455398,25.78689974,192.46,192.41,0.72]
[1761818456019,25.78689974,192.46,192.42,5.19696497]
[1761818456591,20.592,192.46,192.42,5.19696497]
[1761818456828,5.19489974,192.48,192.43,0.72]
[1761818457031,20.592,192.45,192.43,0.72]
[1761818457208,20.592,192.45,192.42,23.38427714]
[1761818457525,14.98372743,192.43,192.33,12.98554497]
[1761818457823,20.592,192.34,192.33,12.98554497]
[1761818458003,5.19489974,192.34,192.33,12.98554497]
[1761818458203,20.592,192.33,192.32,0.2]
[1761818458401,25.78689974,192.33,192.32,0.2]
[1761818460044,20.592,192.33,192.32,0.2]
[1761818460332,26.46689974,192.33,192.32,0.2]
[1761818460506,25.78689974,192.33,192.32,0.2]
[1761818461518,26.46689974,192.33,192.32,0.2]
[1761818461731,25.78689974,192.33,192.32,0.2]
[1761818462237,26.46689974,192.33,192.32,0.2]
[1761818462444,31.6662966,192.33,192.32,0.2]
[1761818462841,31.6662966,192.33,192.23,13.00463666]
[1761818462842,5.19489974,192.27,192.22,0.72]
[1761818463007,5.19489974,192.3,192.23,24.1222555]
[1761818463306,25.78689974,192.29,192.23,18.92735576]
[1761818463506,20.592,192.29,192.24,0.72]
[1761818464028,123.992,192.32,192.26,5.19489974]
[1761818464217,123.992,192.32,192.26,10.39618965]
[1761818464540,103.4,192.32,192.28,5.19489974]
[1761818464920,103.4,192.32,192.29,0.72]
[1761818466328,103.4,192.32,192.3,5.200208]
[1761818466732,103.4,192.32,192.3,5.920208]
[1761818467056,103.4,192.32,192.31,0.72]
[1761818467208,5.19489974,192.38,192.31,5.91489974]
[1761818467412,103.4,192.4,192.3,18.20072802]
[1761818467413,5.19489974,192.39,192.33,9.78882769]
[1761818467959,5.19489974,192.39,192.33,10.50882769]
[1761818468251,5.19489974,192.39,192.34,0.72]
[1761818468411,5.19489974,192.39,192.35,5.19885625]
[1761818468847,5.19489974,192.39,192.34,0.72]
[1761818468848,5.19489974,192.38,192.34,5.91907991]
[1761818469433,25.78689974,192.39,192.34,18.91689627]
[1761818469644,26.46689974,192.39,192.34,24.11179601]
[1761818469862,5.19489974,192.42,192.36,5.19489974]
[1761818470154,25.78689974,192.42,192.36,5.19489974]
[1761818470370,25.78689974,192.42,192.36,5.91489974]
[1761818470527,25.78689974,192.42,192.37,5.19831574]
[1761818470720,26.46689974,192.42,192.37,5.19831574]
[1761818470926,5.87489974,192.42,192.37,5.19831574]
[1761818471229,25.78689974,192.42,192.38,0.72]
[1761818471578,5.19489974,192.4,192.34,5.19891162]
[1761818471726,25.78689974,192.36,192.31,0.72]
[1761818471928,25.78689974,192.36,192.31,11.11481122]
[1761818472274,20.592,192.36,192.32,0.72]
[1761818472630,129.86689974,192.36,192.29,13.72115225]
[1761818472827,129.86689974,192.36,192.3,5.91489974]
[1761818473266,103.4,192.35,192.3,5.91489974]
[1761818473564,108.59489974,192.35,192.3,11.11510774]
[1761818474063,20.592,192.33,192.27,9.78882769]
[1761818474357,20.592,192.33,192.26,13.00279179]
[1761818474358,5.19489974,192.32,192.26,5.19489974]
[1761818474528,5.84489974,192.32,192.26,10.39593]
[1761818474956,20.592,192.32,192.27,5.19489974]
[1761818475129,20.592,192.3,192.28,0.68]
[1761818475634,25.78689974,192.32,192.28,0.68]
[1761818475940,20.592,192.33,192.28,5.87489974]
[1761818476259,20.592,192.32,192.28,5.87489974]
[1761818476450,108.59489974,192.35,192.3,5.19489974]
[1761818476650,123.992,192.35,192.31,5.1999376]
[1761818476949,123.992,192.35,192.31,5.8799376]
[1761818477160,5.19489974,192.39,192.33,5.19489974]
[1761818477347,5.19489974,192.37,192.32,0.68]
[1761818477536,5.19489974,192.35,192.29,11.07532449]
[1761818477841,25.78689974,192.34,192.29,5.20042475]
[1761818478033,26.43689974,192.34,192.29,5.88042475]
[1761818478233,0.65,192.33,192.29,5.20042475]
[1761818478659,5.19489974,192.32,192.25,0.68]
[1761818478868,5.19489974,192.31,192.25,11.0764602]
[1761818479162,5.19489974,192.32,192.26,5.19489974]
[1761818479457,5.19489974,192.32,192.27,5.19489974]
[1761818479662,20.592,192.31,192.26,0.68]
[1761818479864,20.592,192.3,192.26,5.87489974]
[1761818480631,20.592,192.3,192.27,5.20101939]
[1761818481259,25.78689974,192.31,192.27,5.20101939]
[1761818482267,26.43689974,192.31,192.27,5.20101939]
[1761818483130,25.78689974,192.31,192.27,5.20101939]
[1761818483336,5.19489974,192.29,192.26,5.20123232]
[1761818483759,5.19489974,192.29,192.21,9.88882769]
[1761818483760,20.592,192.24,192.21,0.1]
[1761818483963,65.41566033,192.25,192.14,0.68]
[1761818484159,5.19489974,192.23,192.17,5.19489974]
[1761818484458,5.19489974,192.2,192.15,0.68]
[1761818484665,20.592,192.24,192.15,0.68]
[1761818484666,5.19489974,192.18,192.15,0.68]
[1761818484870,5.19489974,192.2,192.15,0.68]
[1761818485242,5.19489974,192.2,192.16,5.20399666]
[1761818485448,5.19489974,192.21,192.16,5.20399666]
[1761818485647,5.19489974,192.18,192.15,5.20426748]
[1761818485862,5.19489974,192.19,192.15,5.20426748]
[1761818486068,5.84489974,192.2,192.15,5.20426748]
[1761818486251,0.65,192.2,192.15,5.20426748]
[1761818486441,0.65,192.23,192.16,0.68]
[1761818486775,5.19489974,192.22,192.16,5.87489974]
[1761818486951,5.19489974,192.22,192.16,0.68]
[1761818487265,5.19489974,192.22,192.17,5.20372586]
[1761818487640,5.88489974,192.22,192.17,18.91304052]
[1761818487838,5.19489974,192.2,192.17,5.20372586]
[1761818488070,5.19489974,192.19,192.17,5.20372586]
[1761818488864,21.282,192.24,192.18,0.7]
[1761818489168,21.282,192.24,192.17,5.20372586]
[1761818489169,5.19489974,192.22,192.17,5.20372586]
[1761818489339,5.19489974,192.22,192.17,18.21304052]
[1761818489542,5.19489974,192.21,192.17,18.21304052]
[1761818490471,20.592,192.24,192.17,5.20372586]
[1761818490644,5.19489974,192.21,192.17,5.90372586]
[1761818490845,5.19489974,192.21,192.17,5.20372586]
[1761818491048,5.19489974,192.2,192.17,5.20372586]
[1761818491274,5.19489974,192.19,192.15,5.9040169]
[1761818491570,0.69,192.23,192.15,24.10958538]
[1761818491751,5.19489974,192.23,192.17,5.19489974]
[1761818492361,50.0,192.17,191.96,2.7162935]
[1761818492569,5.19489974,192.12,192.07,0.7]
[1761818492746,5.19489974,192.13,192.09,5.30567706]
[1761818492952,5.19489974,192.1,192.09,0.1]
[1761818493160,0.69,192.1,192.09,0.1]
[1761818493371,5.88489974,192.1,192.09,0.1]
[1761818493980,20.592,192.13,192.09,0.1]
[1761818494147,20.592,192.14,192.09,0.1]
[1761818494359,5.19489974,192.1,192.09,0.1]
[1761818494885,20.592,192.14,192.09,0.1]
[1761818495201,5.88489974,192.1,192.09,0.1]
[1761818495546,5.19489974,192.1,192.09,0.1]
[1761818496877,5.88489974,192.1,192.09,0.1]
[1761818497184,0.69,192.14,192.09,5.30589307]
[1761818497363,0.69,192.13,192.09,5.30589307]